Workbook

Sheet MARKETING BUDGET PLAN
B2: MARKETING BUDGET PLAN
B4: NUMBER OF ATTENDEES | D4: 50
B5: EVENT COSTS | D5: =SUMIF(tblData[Primary Category],"Event",tblData[Estimated Subtotal]) -> $2,500.00
B6: EVENT PRICE per PERSON | D6: =EventCosts/NumberOfAttendees -> $50.00
B7: ESTIMATED MARKETING GRAND TOTAL | D7: =SUMIF(tblData[Primary Category],"<>Event",tblData[Estimated Subtotal]) -> $45,743.00
B8: SUBTOTAL | D8: =SUBTOTAL(109,tblData[Estimated Subtotal]) -> $48,243.00
B10: Primary Category | C10: Secondary Category | D10: Estimated Quantity | E10: Estimated Cost per Unit | F10: Estimated Subtotal | G10: Notes
B11: Research | C11: Research firm fees | D11: 2 | E11: $2,300.00 | F11: =tblData[[#This Row],[Estimated Quantity]]*tblData[[#This Row],[Estimated Cost per Unit]] -> $4,600.00
B12: Research | C12: Web research | D12: 1 | E12: $1,100.00 | F12: =tblData[[#This Row],[Estimated Quantity]]*tblData[[#This Row],[Estimated Cost per Unit]] -> $1,100.00
B13: Research | C13: Independent research | D13: 3 | E13: $300.00 | F13: =tblData[[#This Row],[Estimated Quantity]]*tblData[[#This Row],[Estimated Cost per Unit]] -> $900.00
B14: Research | C14: Other research | D14: 2 | E14: $250.00 | F14: =tblData[[#This Row],[Estimated Quantity]]*tblData[[#This Row],[Estimated Cost per Unit]] -> $500.00
B15: Communications | C15: Promotional brochures | D15: 5,000 | E15: $0.15 | F15: =tblData[[#This Row],[Estimated Quantity]]*tblData[[#This Row],[Estimated Cost per Unit]] -> $750.00
B16: Communications | C16: Television | D16: 5 | E16: $4,000.00 | F16: =tblData[[#This Row],[Estimated Quantity]]*tblData[[#This Row],[Estimated Cost per Unit]] -> $20,000.00
B17: Communications | C17: Radio | D17: 13 | E17: $350.00 | F17: =tblData[[#This Row],[Estimated Quantity]]*tblData[[#This Row],[Estimated Cost per Unit]] -> $4,550.00
B18: Communications | C18: Web | D18: 1 | E18: $350.00 | F18: =tblData[[#This Row],[Estimated Quantity]]*tblData[[#This Row],[Estimated Cost per Unit]] -> $350.00
B19: Networking | C19: Networking | F19: =tblData[[#This Row],[Estimated Quantity]]*tblData[[#This Row],[Estimated Cost per Unit]] -> $0.00
B20: Networking | C20: Memberships | D20: 3 | E20: $50.00 | F20: =tblData[[#This Row],[Estimated Quantity]]*tblData[[#This Row],[Estimated Cost per Unit]] -> $150.00
B21: Networking | C21: Affiliations | D21: 2 | E21: $20.00 | F21: =tblData[[#This Row],[Estimated Quantity]]*tblData[[#This Row],[Estimated Cost per Unit]] -> $40.00
B22: Networking | C22: Subscriptions | D22: 2 | E22: $32.00 | F22: =tblData[[#This Row],[Estimated Quantity]]*tblData[[#This Row],[Estimated Cost per Unit]] -> $64.00
B23: Event | C23: Number of attendees | D23: 50 | F23: =tblData[[#This Row],[Estimated Quantity]]*tblData[[#This Row],[Estimated Cost per Unit]] -> $0.00
B24: Event | C24: Meal (breakfast, lunch, or dinner) | F24: =tblData[[#This Row],[Estimated Quantity]]*tblData[[#This Row],[Estimated Cost per Unit]] -> $0.00
B25: Event | C25: Food | E25: $23.00 | F25: =tblData[[#This Row],[Estimated Quantity]]*tblData[[#This Row],[Estimated Cost per Unit]] -> $0.00
B26: Event | C26: Tax (10%) | E26: $2.30 | F26: =tblData[[#This Row],[Estimated Quantity]]*tblData[[#This Row],[Estimated Cost per Unit]] -> $0.00
B27: Event | C27: Food and beverage gratuity (20%) | E27: $5.06 | F27: =tblData[[#This Row],[Estimated Quantity]]*tblData[[#This Row],[Estimated Cost per Unit]] -> $0.00
B28: Event | C28: Valet services | D28: 1 | E28: $300.00 | F28: =tblData[[#This Row],[Estimated Quantity]]*tblData[[#This Row],[Estimated Cost per Unit]] -> $300.00
B29: Event | C29: Entertainment #1 | D29: 1 | E29: $800.00 | F29: =tblData[[#This Row],[Estimated Quantity]]*tblData[[#This Row],[Estimated Cost per Unit]] -> $800.00
B30: Event | C30: Entertainment #2 | D30: 1 | E30: $1,200.00 | F30: =tblData[[#This Row],[Estimated Quantity]]*tblData[[#This Row],[Estimated Cost per Unit]] -> $1,200.00
B31: Event | C31: Other services | D31: 1 | E31: $200.00 | F31: =tblData[[#This Row],[Estimated Quantity]]*tblData[[#This Row],[Estimated Cost per Unit]] -> $200.00
B32: Audio/Visual Services | C32: Basic PA system and podium | D32: 1 | E32: $0.00 | F32: =tblData[[#This Row],[Estimated Quantity]]*tblData[[#This Row],[Estimated Cost per Unit]] -> $0.00 | G32: Provided by venue (usually)
B33: Audio/Visual Services | C33: Screen | D33: 1 | E33: $0.00 | F33: =tblData[[#This Row],[Estimated Quantity]]*tblData[[#This Row],[Estimated Cost per Unit]] -> $0.00 | G33: Provided by venue (usually)
B34: Audio/Visual Services | C34: XGA data/video projector rental | D34: 1 | E34: $45.00 | F34: =tblData[[#This Row],[Estimated Quantity]]*tblData[[#This Row],[Estimated Cost per Unit]] -> $45.00
B35: Audio/Visual Services | C35: Wireless mouse | D35: 1 | E35: $12.00 | F35: =tblData[[#This Row],[Estimated Quantity]]*tblData[[#This Row],[Estimated Cost per Unit]] -> $12.00
B36: Audio/Visual Services | C36: Power strips | D36: 1 | E36: $0.00 | F36: =tblData[[#This Row],[Estimated Quantity]]*tblData[[#This Row],[Estimated Cost per Unit]] -> $0.00 | G36: Provided by venue (usually)
B37: Audio/Visual Services | C37: Extension cords | D37: 1 | E37: $0.00 | F37: =tblData[[#This Row],[Estimated Quantity]]*tblData[[#This Row],[Estimated Cost per Unit]] -> $0.00 | G37: Provided by venue (usually)
B38: Audio/Visual Services | C38: Lavalier microphone | D38: 1 | E38: $0.00 | F38: =tblData[[#This Row],[Estimated Quantity]]*tblData[[#This Row],[Estimated Cost per Unit]] -> $0.00 | G38: Provided by venue (usually)
B39: Audio/Visual Services | C39: Labor and AV technicians | D39: 1 | E39: $300.00 | F39: =tblData[[#This Row],[Estimated Quantity]]*tblData[[#This Row],[Estimated Cost per Unit]] -> $300.00
B40: Audio/Visual Services | C40: Tax (8.8%) | E40: $31.42 | F40: =tblData[[#This Row],[Estimated Quantity]]*tblData[[#This Row],[Estimated Cost per Unit]] -> $0.00
B41: Additional Costs | C41: Invitation (printing and postage costs) | E41: $834.00 | F41: =tblData[[#This Row],[Estimated Quantity]]*tblData[[#This Row],[Estimated Cost per Unit]] -> $0.00
B42: Additional Costs | C42: Time & Expense (T&E) | E42: $600.00 | F42: =tblData[[#This Row],[Estimated Quantity]]*tblData[[#This Row],[Estimated Cost per Unit]] -> $0.00
B43: Additional Costs | C43: Company staff T&E | E43: $200.00 | F43: =tblData[[#This Row],[Estimated Quantity]]*tblData[[#This Row],[Estimated Cost per Unit]] -> $0.00 | G43: <Number of persons onsite>
B44: Additional Costs | C44: Customer testimonial T&E | E44: $100.00 | F44: =tblData[[#This Row],[Estimated Quantity]]*tblData[[#This Row],[Estimated Cost per Unit]] -> $0.00
B45: Giveaways | C45: Giveaway #1 | D45: 25 | E45: $10.00 | F45: =tblData[[#This Row],[Estimated Quantity]]*tblData[[#This Row],[Estimated Cost per Unit]] -> $250.00 | G45: <Giveaway item description>
B46: Giveaways | C46: Giveaway #2 | D46: 25 | E46: $5.00 | F46: =tblData[[#This Row],[Estimated Quantity]]*tblData[[#This Row],[Estimated Cost per Unit]] -> $125.00 | G46: <Giveaway item description>
B47: Promotions | C47: Product giveaways | D47: 50 | E47: $8.00 | F47: =tblData[[#This Row],[Estimated Quantity]]*tblData[[#This Row],[Estimated Cost per Unit]] -> $400.00
B48: Promotions | C48: Product discounts | D48: 300 | E48: $3.00 | F48: =tblData[[#This Row],[Estimated Quantity]]*tblData[[#This Row],[Estimated Cost per Unit]] -> $900.00
B49: Promotions | C49: Special offers | D49: 200 | E49: $2.50 | F49: =tblData[[#This Row],[Estimated Quantity]]*tblData[[#This Row],[Estimated Cost per Unit]] -> $500.00
B50: Advertising | C50: Brochures (development and production) | D50: 5,000 | E50: $0.15 | F50: =tblData[[#This Row],[Estimated Quantity]]*tblData[[#This Row],[Estimated Cost per Unit]] -> $750.00
B51: Advertising | C51: Mailings | D51: 15,000 | E51: $0.04 | F51: =tblData[[#This Row],[Estimated Quantity]]*tblData[[#This Row],[Estimated Cost per Unit]] -> $600.00
B52: Advertising | C52: Postcards | D52: 15,000 | E52: $0.03 | F52: =tblData[[#This Row],[Estimated Quantity]]*tblData[[#This Row],[Estimated Cost per Unit]] -> $450.00
B53: Advertising | C53: Television | D53: 2 | E53: $600.00 | F53: =tblData[[#This Row],[Estimated Quantity]]*tblData[[#This Row],[Estimated Cost per Unit]] -> $1,200.00
B54: Advertising | C54: Radio | D54: 4 | E54: $300.00 | F54: =tblData[[#This Row],[Estimated Quantity]]*tblData[[#This Row],[Estimated Cost per Unit]] -> $1,200.00
B55: Advertising | C55: Newspapers | D55: 6 | E55: $220.00 | F55: =tblData[[#This Row],[Estimated Quantity]]*tblData[[#This Row],[Estimated Cost per Unit]] -> $1,320.00
B56: Advertising | C56: Billboards | D56: 2 | E56: $556.00 | F56: =tblData[[#This Row],[Estimated Quantity]]*tblData[[#This Row],[Estimated Cost per Unit]] -> $1,112.00
B57: Advertising | C57: Bus sides | D57: 3 | E57: $125.00 | F57: =tblData[[#This Row],[Estimated Quantity]]*tblData[[#This Row],[Estimated Cost per Unit]] -> $375.00
B58: Public Relations | C58: Charity events | D58: 3 | E58: $200.00 | F58: =tblData[[#This Row],[Estimated Quantity]]*tblData[[#This Row],[Estimated Cost per Unit]] -> $600.00
B59: Public Relations | C59: Advertising | D59: 4 | E59: $200.00 | F59: =tblData[[#This Row],[Estimated Quantity]]*tblData[[#This Row],[Estimated Cost per Unit]] -> $800.00
B60: Public Relations | C60: Employee promotions | D60: 6 | E60: $200.00 | F60: =tblData[[#This Row],[Estimated Quantity]]*tblData[[#This Row],[Estimated Cost per Unit]] -> $1,200.00
B61: Public Relations | C61: Sponsorships | D61: 3 | E61: $200.00 | F61: =tblData[[#This Row],[Estimated Quantity]]*tblData[[#This Row],[Estimated Cost per Unit]] -> $600.00

Sheet CATEGORY CHART
B2: MARKETING CATEGORY CHART
C4: Primary Category
C5: Additional Costs | D5: Advertising | E5: Audio/Visual Services | F5: Communications | G5: Event | H5: Giveaways | I5: Networking | J5: Promotions | K5: Public Relations | L5: Research | M5: Grand Total
B6: Estimated Subtotal | C6: $0.00 | D6: $7,007.00 | E6: $357.00 | F6: $25,650.00 | G6: $2,500.00 | H6: $375.00 | I6: $254.00 | J6: $1,800.00 | K6: $3,200.00 | L6: $7,100.00 | M6: $48,243.00
